[Event "Slovakia Open 2022"]
[Site "Bratislava"]
[Date "2022.09.30"]
[Round "3.9"]
[White "Laurusas, Tomas"]
[Black "Djubek, Boris"]
[Result "1-0"]
[ECO "D66"]
[WhiteElo "2563"]
[BlackElo "1995"]
[Annotator "TA"]
[PlyCount "73"]
[EventDate "2022.09.30"]
[EventCountry "SVK"]
[SourceTitle "playchess.com"]
[Source "ChessBase"]
[SourceQuality "1"]
[TimeControl "2700+10"]

{[%evp 22,73,36,16,37,57,98,77,86,91,85,81,90,93,110,104,102,108,109,23,100,61,91,78,106,108,118,110,128,127,214,214,214,214,214,214,203,169,202,180,162,170,395,387,456,440,737,734,850,901,799,748,767,770]} 1. d4 {[%emt 0:00:10]} d5 {[%emt 0:00:07]} 2. c4 {[%emt 0:00:02]} e6 {[%emt 0:00:12]} 3. Nc3 {[%emt 0:00:03]} Nf6 {[%emt 0:00:09]} 4. Bg5 {[%emt 0:00:02]} Be7 {[%emt 0:00:20]} 5. e3 {[%emt 0:00:02]} O-O {[%emt 0:00:25]} 6. Nf3 {[%emt 0:00:02]} c6 {[%emt 0:01:16]} 7. Rc1 {[%emt 0:00:03]} Nbd7 {[%emt 0:00:32]} 8. Bd3 {[%emt 0:00:02]} dxc4 {[%emt 0:00:47]} 9. Bxc4 {[%emt 0:00:02]} b5 {[%emt 0:00:28]} 10. Bd3 {[%emt 0:00:02]} Bb7 {[%emt 0:00:52]} 11. O-O {[%emt 0:00:04]} a6 {[%emt 0:01:59]} 12. a4 $1 {[%emt 0:00:12][%mdl 4] is more profitable than 12.Qe2 at the moment.} Rc8 {[%emt 0:01:33] D66: Queen's Gambit Declined: Classical: Main Line (7 Rc1 c6 8 Bd3).} 13. Qe2 {[%emt 0:06:04] [#]} Nd5 $146 {[%emt 0:07:34] Threatens to win with ...Nxc3.} ({Predecessor:} 13... h6 14. Bh4 Nb6 15. Bb1 Nbd5 16. Ne5 c5 17. axb5 axb5 18. dxc5 Rxc5 19. Nxb5 Qb6 20. Nd4 {½-½ (69) Iniyan,P (2494)-Barzen,P (2301) Schwaebisch Gmuend 2020}) 14. Ne4 {[%emt 0:03:31]} Nb4 {[%emt 0:05:09] White is better.} 15. Bxe7 {[%emt 0:02:11]} (15. axb5 cxb5 16. Rxc8 Bxc8 $14) 15... Qxe7 {[%emt 0:00:17] [#]} 16. Nc5 $1 {[%emt 0:00:03]} (16. axb5 $6 Nxd3 17. Qxd3 cxb5 $11) 16... Nxc5 {[%emt 0:02:39]} 17. Rxc5 {[%emt 0:00:19]} Nxd3 {[%emt 0:00:11]} 18. Qxd3 {[%emt 0:00:03]} bxa4 {[%emt 0:00:45]} 19. Qc2 {[%emt 0:03:28] White is much more active.} Rfd8 {[%emt 0:03:04]} 20. e4 {[%emt 0:00:02]} (20. Qxa4 $16 Rd5 21. Rfc1) 20... Ra8 {[%emt 0:02:34]} (20... Ba8 $11) 21. Qxa4 {[%emt 0:00:34] White stays focused until the end.} h6 {[%emt 0:01:08]} 22. h3 {[%emt 0:01:51]} Qd6 {[%emt 0:02:43]} 23. Ra1 {[%emt 0:00:58]} Qf4 {[%emt 0:01:23]} 24. Qc2 {[%emt 0:00:02]} a5 {[%emt 0:04:32]} 25. Ra4 {[%emt 0:00:02]} ({Of course not} 25. Raxa5 $6 Rxa5 26. Rxa5 c5 $11) 25... Ba6 {[%emt 0:02:04]} (25... f6 $16 26. Nd2 (26. Raxa5 Rxa5 27. Rxa5 c5 $11) 26... Bc8) 26. Rcxa5 $18 {[%emt 0:00:31]} Bb7 {[%emt 0:00:16]} 27. Rxa8 {[%emt 0:01:14]} Rxa8 {[%emt 0:02:10]} 28. Rxa8+ {[%emt 0:00:03]} Bxa8 {[%emt 0:00:02][%mdl 4096] Endgame KQB-KQN} 29. Nd2 {[%emt 0:02:37]} Qd6 {[%emt 0:00:32]} 30. Qc5 {[%emt 0:00:35]} Qxc5 {[%emt 0:02:21]} 31. dxc5 {[%emt 0:00:01] KB-KN} e5 $2 {[%emt 0:01:01] [#]} (31... Bb7 32. Nb3 Ba6) 32. Nc4 {[%emt 0:00:12]} f6 {[%emt 0:00:04]} 33. Nd6 {[%emt 0:00:32] Prevents Bb7. White is clearly winning.} g6 {[%emt 0:00:45]} (33... Kf8 $142 34. f3 h5) 34. Kf1 {[%emt 0:00:13]} Kf8 {[%emt 0:00:09]} 35. Ke2 {[%emt 0:00:01]} Ke7 {[%emt 0:00:27]} 36. Kd3 {[%emt 0:00:04]} Ke6 {[%emt 0:00:21]} 37. g4 {[%emt 0:00:10] Weighted Error Value: White=0.15 (very precise) /Black=0.38} 1-0

[Event "Slovakia Open 2022"]
[Site "Bratislava"]
[Date "2022.09.30"]
[Round "3.11"]
[White "Nestorenko, Dmitry"]
[Black "Balint, Peter"]
[Result "1-0"]
[WhiteElo "2168"]
[BlackElo "2235"]
[Annotator "TA"]
[PlyCount "30"]
[EventDate "2022.09.30"]
[EventCountry "SVK"]
[SourceTitle "playchess.com"]
[Source "ChessBase"]
[SourceQuality "1"]
[TimeControl "2700+10"]

{[%evp 9,9,11]} 1. Nf3 {[%emt 0:00:18]} d5 {[%emt 0:45:20]} 2. d4 {[%emt 0:45:12]} Bg4 {[%emt 0:00:10]} 3. e4 {[%emt 0:00:10]} Nc6 {[%emt 0:00:10]} 4. exd5 {[%emt 0:00:10]} Qxd5 {[%emt 0:00:10]} 5. Be2 {[%emt 0:00:10] [#] A rather calm draw.} {Predecessor:} O-O-O $146 6. c3 {B01: Scandinavian Defence.} e5 7. O-O exd4 8. Nxd4 Bxe2 9. Qxe2 Nf6 10. Be3 Bc5 11. Nxc6 Qxc6 12. Bxc5 Qxc5 13. Na3 Rhe8 14. Qc4 Qxc4 15. Nxc4 Re2 {0-1 (33) Paravyan,D (2631)-Artemiev,V (2704) Moscow 2021} 1-0

[Event "Slovakia Open 2022"]
[Site "Bratislava"]
[Date "2022.09.30"]
[Round "3.12"]
[White "Nytra, Ondrej"]
[Black "Roshka, Yevgeniy"]
[Result "1-0"]
[ECO "B06"]
[WhiteElo "2233"]
[BlackElo "2497"]
[Annotator "TA"]
[PlyCount "61"]
[EventDate "2022.09.30"]
[EventCountry "SVK"]
[SourceTitle "playchess.com"]
[Source "ChessBase"]
[SourceQuality "1"]
[TimeControl "2700+10"]

{[%evp 9,61,8,18,13,64,7,43,42,50,35,46,42,39,22,35,20,55,30,44,25,23,18,21,8,19,25,45,30,54,0,37,39,52,37,43,54,75,60,79,51,16,27,109,126,108,106,287,266,883,847,5302,3355,5314,4902]} 1. e4 {[%emt 0:00:13]} g6 {[%emt 0:00:04]} 2. d4 {[%emt 0:00:09]} Bg7 {[%emt 0:00:02]} 3. f4 {[%emt 0:00:08]} d5 {[%emt 0:00:33]} 4. e5 {[%emt 0:00:07]} Nh6 {[%emt 0:00:26]} 5. Be3 {[%emt 0:01:17]} O-O {[%emt 0:00:20][%cal Oc7c5]} (5... f6 {looks sharper.} 6. Nc3 Ng4 7. Bc1 c5) 6. Nf3 {[%emt 0:00:15] B06: Modern Defence.} b6 {[%emt 0:03:49] [#]} (6... f6 $11) 7. a4 $146 {[%emt 0:01:53]} (7. Nc3 $14) ({Predecessor:} 7. Bd3 Ba6 8. O-O Qc8 9. c3 e6 10. Na3 Bxd3 11. Qxd3 Qa6 12. Qd2 Nd7 13. Nc2 {0-1 (37) Hansen,C (2310)-Vladimirov,Y (2575) Gausdal 1990}) 7... a5 {[%emt 0:00:37]} 8. Na3 {[%emt 0:00:46] White is slightly better.} Ba6 {[%emt 0:02:46]} 9. Qd2 {[%emt 0:00:41]} Bxf1 {[%emt 0:00:34]} 10. Rxf1 {[%emt 0:00:01]} Qd7 {[%emt 0:00:08]} 11. b3 {[%emt 0:01:08]} Na6 {[%emt 0:00:17]} 12. h3 {[%emt 0:00:29]} f5 {[%emt 0:00:04] Inhibits g4.} 13. Ng5 {[%emt 0:01:29]} e6 {[%emt 0:01:23]} 14. c3 {[%emt 0:00:07]} Rfc8 {[%emt 0:01:45]} 15. Kf2 {[%emt 0:00:55]} Bf8 {[%emt 0:00:26]} 16. Kg1 {[%emt 0:00:49]} c6 {[%emt 0:01:24]} 17. Qe2 {[%emt 0:00:38]} Nc7 {[%emt 0:00:27]} 18. Nc2 {[%emt 0:01:28]} b5 {[%emt 0:04:27]} 19. Bd2 {[%emt 0:01:58]} (19. Ne1 $14) 19... Rab8 {[%emt 0:02:33]} 20. Rfb1 {[%emt 0:02:13]} Nf7 {[%emt 0:08:13]} 21. Nxf7 {[%emt 0:02:33]} (21. Nf3 {is more complex.} c5 22. axb5 cxd4 23. cxd4 Nxb5 24. Qd3) 21... Kxf7 {[%emt 0:00:12]} 22. axb5 {[%emt 0:00:08]} Rxb5 {[%emt 0:00:04]} 23. c4 {[%emt 0:00:02]} dxc4 {[%emt 0:00:04]} 24. bxc4 {[%emt 0:00:01][%cal Bb3c4,Bc4d5][%mdl 32]} Rxb1+ {[%emt 0:00:26]} 25. Rxb1 {[%emt 0:00:01]} c5 {[%emt 0:00:16]} (25... Ra8 $11 {keeps the balance.}) 26. d5 $1 $16 {[%emt 0:00:58]} ({Much worse is} 26. Bxa5 $6 cxd4 27. Qd3 Na6 $11) 26... exd5 {[%emt 0:00:19]} 27. Bxa5 {[%emt 0:01:38] Strongly threatening Rb7. White is more active.} Ne6 $2 {[%emt 0:00:02] [#] Black cannot hold the game after this.} (27... dxc4 $16 {was worth a try.} 28. Rb7 (28. Qxc4+ Qd5 $11) 28... Kg8) 28. Qf3 $1 $18 {[%emt 0:02:36]} Ra8 $2 {[%emt 0:02:06]} (28... Qa7) 29. cxd5 {[%emt 0:01:06] White is clearly winning.} Rxa5 {[%emt 0:00:03] [#]} 30. Rb7 $3 {[%emt 0:00:22][%mdl 512]} Nc7 {[%emt 0:01:03]} (30... Ra7 31. Rxd7+) 31. e6+ {[%emt 0:00:04] Weighted Error Value: White=0.10 (very precise) /Black=0.31} 1-0

[Event "Slovakia Open 2022"]
[Site "Bratislava"]
[Date "2022.09.30"]
[Round "3.13"]
[White "Rancso, Mark"]
[Black "Machata, Martin"]
[Result "0-1"]
[ECO "C02"]
[WhiteElo "1960"]
[BlackElo "2212"]
[Annotator "TA"]
[PlyCount "94"]
[EventDate "2022.09.30"]
[EventCountry "SVK"]
[SourceTitle "playchess.com"]
[Source "ChessBase"]
[SourceQuality "1"]
[TimeControl "2700+10"]

{[%evp 9,94,19,28,7,10,4,9,-1,13,-4,0,0,1,-15,-11,-12,-2,0,0,-16,0,-4,33,39,53,50,51,32,35,35,37,0,45,45,45,26,26,26,26,26,26,26,26,26,26,25,39,39,39,39,39,39,36,-39,-47,-47,0,0,0,0,0,0,0,0,0,0,0,0,0,0,0,0,0,0,0,0,0,0,0,0,0,0,0,0,0,-286,4133]} 1. d4 {[%emt 0:00:03]} e6 {[%emt 0:00:05]} 2. e4 {[%emt 0:00:09]} d5 {[%emt 0:00:02]} 3. e5 {[%emt 0:00:04]} Bd7 {[%emt 0:00:02]} 4. Nf3 {[%emt 0:00:14]} a6 {[%emt 0:00:03]} 5. c3 {[%emt 0:00:06]} Bb5 {[%emt 0:00:02]} 6. Bd3 {[%emt 0:00:21] C02: French: Advance Variation.} Bxd3 {[%emt 0:01:03]} 7. Qxd3 {[%emt 0:00:01]} c5 {[%emt 0:00:10] Against b4} 8. a3 {[%emt 0:00:54] The position is equal.} Nc6 {[%emt 0:00:01]} 9. O-O {[%emt 0:00:10]} c4 {[%emt 0:00:26]} 10. Qe2 {[%emt 0:00:33]} Nge7 {[%emt 0:01:13] [#]} 11. Bg5 $146 {[%emt 0:04:13]} ({Predecessor:} 11. Ng5 h6 12. Nh3 Qd7 13. Nd2 Ng6 14. f4 O-O-O 15. b3 cxb3 16. Nxb3 f6 17. Qh5 {1-0 (47) Di Donato,G (1919)-Guerini,S (1773) Bratto 2013}) 11... Qb6 {[%emt 0:00:59]} 12. Qc2 {[%emt 0:00:35]} Na5 {[%emt 0:01:56]} 13. Nbd2 {[%emt 0:00:16]} h6 {[%emt 0:00:43]} 14. Be3 {[%emt 0:00:53]} Nec6 {[%emt 0:05:18]} 15. Rab1 {[%emt 0:01:54]} Nb3 {[%emt 0:00:18]} 16. Nxb3 {[%emt 0:00:18]} cxb3 {[%emt 0:00:59]} 17. Qd1 {[%emt 0:01:13][%cal Oc3c4]} Na5 {[%emt 0:00:51]} 18. Nd2 {[%emt 0:00:09][%cal Oc3c4]} Qb5 {[%emt 0:02:59]} 19. Re1 {[%emt 0:02:47]} Be7 {[%emt 0:01:08]} 20. Qe2 {[%emt 0:02:21]} Rc8 {[%emt 0:00:56]} 21. Qxb5+ {[%emt 0:00:43]} axb5 {[%emt 0:00:03]} 22. f4 {[%emt 0:00:31]} g6 {[%emt 0:00:22]} 23. Re2 {[%emt 0:00:15]} Kd7 {[%emt 0:00:36]} 24. Kf2 {[%emt 0:02:51]} Rc6 {[%emt 0:00:15]} 25. Ree1 {[%emt 0:04:05]} Rg8 {[%emt 0:04:54][%cal Bh8g8,Bg8g7,Bg7g4][%mdl 32]} 26. g3 {[%emt 0:01:57]} Rg7 {[%emt 0:03:18]} 27. h4 {[%emt 0:01:14][%cal Of4f5]} Rc8 {[%emt 0:00:56]} 28. f5 {[%emt 0:02:42]} gxf5 {[%emt 0:00:56]} 29. Bxh6 {[%emt 0:00:03]} Rg4 {[%emt 0:00:03]} 30. Rh1 {[%emt 0:00:42]} Rh8 {[%emt 0:03:11]} 31. Bg5 {[%emt 0:03:46]} ({White should play} 31. Bf4 $14) 31... Bxg5 $15 {[%emt 0:06:20]} 32. hxg5 {[%emt 0:00:03]} Rxh1 {[%emt 0:05:27]} (32... Rg8 $1 $15) 33. Rxh1 $11 {[%emt 0:00:01]} Rxg5 $15 {[%emt 0:00:08][%mdl 4096] Endgame KRN-KRN} 34. Rh7 {[%emt 0:00:29]} Ke7 {[%emt 0:00:10]} 35. Rh8 $1 {[%emt 0:00:06] Against Rg8} b6 {[%emt 0:03:53]} 36. Rb8 {[%emt 0:01:21]} Nc4 {[%emt 0:00:03]} 37. Nxc4 {[%emt 0:00:13]} bxc4 {[%emt 0:00:01]} 38. Rxb6 $11 {[%emt 0:00:20] Hoping for Rb7+. KR-KR} f4 {[%emt 0:00:01]} 39. gxf4 {[%emt 0:01:22]} Rg4 {[%emt 0:00:03]} 40. a4 {[%emt 0:01:28] [#] Strongly threatening Rb7+.} Rxf4+ {[%emt 0:00:02]} 41. Kg2 {[%emt 0:00:01]} Rg4+ {[%emt 0:00:24]} 42. Kf2 {[%emt 0:00:09]} Rh4 {[%emt 0:00:14] ...Rh2+ is the strong threat.} 43. Kg2 {[%emt 0:00:03] Against Rh2+} Rg4+ {[%emt 0:00:36]} 44. Kf2 {[%emt 0:00:05]} Rf4+ {[%emt 0:00:03]} 45. Kg2 {[%emt 0:00:02]} Kd7 {[%emt 0:00:21]} 46. Rb7+ {[%emt 0:01:36]} Kc6 {[%emt 0:00:13]} 47. Re7 {[%emt 0:00:07][%mdl 8192] [#]} (47. Rb8 $11 {and White is okay.}) 47... Rxd4 $4 {[%emt 0:00:36][%mdl 40960] Weighted Error Value: White=0.19 (very precise) /Black=0.05 (flawless) . Loss on time!?} 0-1

[Event "Slovakia Open 2022"]
[Site "Bratislava"]
[Date "2022.09.30"]
[Round "3.14"]
[White "Novosadova, Kristyna"]
[Black "Kucera, Michal"]
[Result "1-0"]
[ECO "B33"]
[WhiteElo "2151"]
[BlackElo "1927"]
[Annotator "TA"]
[PlyCount "107"]
[EventDate "2022.09.30"]
[EventCountry "SVK"]
[SourceTitle "playchess.com"]
[Source "ChessBase"]
[SourceQuality "1"]
[TimeControl "2700+10"]

{[%evp 30,107,-35,-28,59,66,72,69,96,71,113,115,131,107,131,130,186,180,164,171,247,213,209,160,166,169,252,234,264,256,233,130,118,120,120,114,117,104,141,146,147,141,157,157,156,135,178,157,166,152,158,129,158,164,168,164,173,162,174,139,163,166,156,172,167,127,275,275,268,262,256,254,245,238,226,218,341,345,318,318]} 1. e4 {[%emt 0:00:07] CB} c5 {[%emt 0:00:03]} 2. Nf3 {[%emt 0:00:02]} Nc6 {[%emt 0:00:10]} 3. d4 {[%emt 0:00:02]} cxd4 {[%emt 0:00:00]} 4. Nxd4 {[%emt 0:00:01]} Nf6 {[%emt 0:00:00]} 5. Nc3 {[%emt 0:00:02]} e5 {[%emt 0:00:00]} 6. Ndb5 {[%emt 0:00:02]} d6 {[%emt 0:00:00]} 7. Bg5 {[%emt 0:00:03]} a6 {[%emt 0:00:01]} 8. Na3 {[%emt 0:00:02]} b5 {[%emt 0:00:10]} 9. Nd5 {[%emt 0:00:02]} Be7 {[%emt 0:00:00]} 10. Bxf6 {[%emt 0:00:16]} Bxf6 {[%emt 0:00:00]} 11. c3 {[%emt 0:00:02]} O-O {[%emt 0:00:02]} 12. Nc2 {[%emt 0:00:02]} Rb8 {[%emt 0:00:07]} 13. a4 {[%emt 0:00:17]} bxa4 {[%emt 0:00:08]} 14. Ncb4 {[%emt 0:00:02]} Nxb4 {[%emt 0:04:05]} 15. cxb4 {[%emt 0:02:33] The main line 15.cxb4 scores better than 15.Nxb4.} Bb7 {[%emt 0:06:45]} 16. Rxa4 {[%emt 0:00:24] [#]} Ra8 $146 {[%emt 0:00:51] B33: Sicilian: Pelikan and Sveshnikov Variations.} ({Black should play} 16... Bxd5 $11 17. exd5 e4 18. Bxa6 Bxb2) ({Predecessor:} 16... Qc8 17. Nxf6+ gxf6 18. Bd3 Bc6 19. Rxa6 Rxb4 20. O-O Rd4 21. Qf3 Bxe4 22. Bxe4 Qxa6 23. Qg4+ Kh8 24. Qf5 Rxe4 25. Qxf6+ Kg8 26. Qg5+ Kh8 27. Qf6+ Kg8 28. Qg5+ Kh8 {½-½ (28) Vachier Lagrave,M (2765)-Carlsen,M (2850) London 2015 CBM 170 [CB]}) 17. Bc4 $14 {[%emt 0:01:02]} Bg5 {[%emt 0:02:29]} 18. O-O {[%emt 0:00:18]} Kh8 {[%emt 0:00:28] White is slightly better.} 19. Qd3 {[%emt 0:00:20][%cal Rc4a6]} g6 {[%emt 0:05:36]} 20. Bxa6 {[%emt 0:00:44] White is more active.} Bxd5 {[%emt 0:03:40]} 21. Qxd5 {[%emt 0:01:47]} Qb6 {[%emt 0:00:48]} 22. b5 {[%emt 0:00:21]} f5 {[%emt 0:00:24]} (22... Ra7 $16) 23. exf5 $18 {[%emt 0:00:36]} gxf5 {[%emt 0:00:37]} 24. Rc4 {[%emt 0:00:56][%cal Ba4c4,Bc4c6,Bc6d6][%mdl 32]} Rfd8 {[%emt 0:06:43]} (24... e4 $142 25. Rc6 Qa7 26. Qxd6 Qe7 27. Qxe7 Bxe7) 25. Rc6 {[%emt 0:00:30]} Qd4 {[%emt 0:00:33]} 26. Qf7 {[%emt 0:02:18] [#] White threatens Rc7 and mate.} Rf8 {[%emt 0:01:35]} 27. Qh5 {[%emt 0:00:02]} Bd8 {[%emt 0:01:00] Against Rc7} (27... Qg4 $142 28. Qxg4 fxg4 29. Rxd6 e4) 28. Rd1 {[%emt 0:00:11]} Qg4 {[%emt 0:02:59]} 29. Qxg4 {[%emt 0:00:36]} fxg4 {[%emt 0:00:01]} 30. Rcxd6 {[%emt 0:00:59]} (30. Rdxd6 $18 {Strongly threatening g3.} Ba5 31. Kf1) 30... Rb8 $16 {[%emt 0:00:10]} 31. Re1 {[%emt 0:02:46][%cal Bd1e1,Be1e2,Be2c2][%mdl 32]} Bb6 {[%emt 0:00:13]} 32. Re2 {[%emt 0:00:11]} ({Much weaker is} 32. Rxe5 $6 Bc7 33. Ree6 Bxd6 34. Rxd6 Rf4 $11) 32... Bd4 {[%emt 0:00:25]} 33. Rc6 {[%emt 0:00:43]} Rbd8 {[%emt 0:01:23][%cal Od4f2] [#] ( -> ...Bxf2+!)} 34. g3 {[%emt 0:00:23] Hoping for b6.} Rb8 {[%emt 0:02:27] Prevents b6.} 35. Kg2 {[%emt 0:00:07]} Kg7 {[%emt 0:01:26]} 36. Rc7+ {[%emt 0:00:15]} Rf7 {[%emt 0:00:41]} 37. Rec2 {[%emt 0:00:50]} Bb6 {[%emt 0:00:57]} 38. Rxf7+ {[%emt 0:00:21]} Kxf7 $18 {[%emt 0:00:10][%mdl 4096] Endgame KRB-KRB} 39. Bc8 {[%emt 0:00:11]} h5 {[%emt 0:00:31]} 40. Bd7 {[%emt 0:00:29]} Ke7 {[%emt 0:00:18]} 41. Bc6 {[%emt 0:00:08]} Bd4 {[%emt 0:00:44]} 42. f3 {[%emt 0:00:30]} Kf6 {[%emt 0:00:54]} 43. h3 {[%emt 0:00:07]} Kg5 {[%emt 0:01:28]} 44. Bd7 {[%emt 0:01:21]} gxf3+ {[%emt 0:00:11]} 45. Kxf3 {[%emt 0:00:04]} h4 {[%emt 0:00:12]} 46. gxh4+ {[%emt 0:01:37]} Kxh4 {[%emt 0:00:01]} 47. Rg2 {[%emt 0:00:49]} Rb6 {[%emt 0:00:10] A mistake that costs the game.} (47... Rf8+ $16 {is a better defense.} 48. Ke4 Rd8) 48. Rg4+ {[%emt 0:01:49]} Kh5 {[%emt 0:00:32]} 49. b3 {[%emt 0:00:35]} Rd6 {[%emt 0:00:16]} 50. Be8+ {[%emt 0:00:15]} Kh6 {[%emt 0:00:01]} 51. Ke4 {[%emt 0:00:21]} Rb6 {[%emt 0:00:14]} 52. Kf5 {[%emt 0:00:29]} Bc3 {[%emt 0:00:23]} (52... Rd6 {was called for.} 53. Bf7 Rd8) 53. Rc4 {[%emt 0:00:29] White wants to mate with Rc6+.} Bd4 {[%emt 0:00:03]} 54. Rc6+ {[%emt 0:01:03] Weighted Error Value: White=0.11 (very precise) /Black=0.26 (precise)} 1-0

[Event "Slovakia Open 2022"]
[Site "Bratislava"]
[Date "2022.09.30"]
[Round "3.15"]
[White "Durovka, Stefan"]
[Black "Sobek, Michal"]
[Result "0-1"]
[ECO "A35"]
[WhiteElo "1783"]
[BlackElo "2156"]
[Annotator "TA"]
[PlyCount "114"]
[EventDate "2022.09.30"]
[EventCountry "SVK"]
[SourceTitle "playchess.com"]
[Source "ChessBase"]
[SourceQuality "1"]
[TimeControl "2700+10"]

{[%evp 11,114,0,11,-25,-16,-37,0,-10,-6,-4,-8,-13,-11,-6,-6,-8,0,-16,-11,-18,-18,-16,0,0,0,0,0,-3,0,0,0,-14,0,-7,0,-15,0,-41,-51,-41,-50,-45,-16,-21,-18,-20,-23,-167,-37,-37,-37,-37,-38,-39,-46,-114,-114,-192,-191,-195,-118,-231,-108,-172,-172,-876,-876,-838,-791,-920,-900,-842,-777,-937,-979,-1128,-980,-5108,-3050,-29974,-29975,-29975,-29976,-29976,-29974,-29976,-12359,-29974,-29973,-29977,-29978,-29979,-29981,-29984,-29985,-29986,-29987,-29987,-29988,-29989,-29990,-29990,-29991,-29998,-29999]} 1. Nf3 {[%emt 0:00:05]} c5 {[%emt 0:00:03]} 2. c4 {[%emt 0:00:03]} Nc6 {[%emt 0:00:02]} 3. Nc3 {[%emt 0:00:02]} g6 {[%emt 0:00:03]} 4. d4 {[%emt 0:00:04]} cxd4 {[%emt 0:00:03]} 5. Nxd4 {[%emt 0:00:10]} Bg7 {[%emt 0:00:05]} 6. Nxc6 {[%emt 0:00:00]} bxc6 {[%emt 0:00:02]} 7. Bd2 {[%emt 0:00:08] A35: Symmetrical English: 2 Nc3 Nc6 3 Nf3.} Nf6 {[%emt 0:00:37]} 8. e4 {[%emt 0:00:11]} d6 {[%emt 0:00:15]} 9. Bd3 {[%emt 0:00:09] The position is equal.} O-O {[%emt 0:00:06]} 10. O-O {[%emt 0:00:01] [#]} d5 $146 {[%emt 0:00:12]} ({Predecessor:} 10... Rb8 11. b3 Nd7 12. Rc1 Nc5 13. Bb1 Ne6 14. Re1 Nd4 15. Be3 c5 16. Bxd4 cxd4 17. Nb5 Qb6 {0-1 (54) Shamaeva,E (1934)-Khomitskiy,M (2020) Zheleznogorsk 2017}) 11. cxd5 {[%emt 0:00:34]} cxd5 {[%emt 0:00:04]} 12. exd5 {[%emt 0:00:02]} Nxd5 {[%emt 0:00:02]} 13. Be4 {[%emt 0:00:18]} Bb7 {[%emt 0:00:56] Hoping for ...Nxc3.} 14. Nxd5 {[%emt 0:00:36]} Bxd5 {[%emt 0:00:02]} 15. Bxd5 {[%emt 0:00:13]} Qxd5 {[%emt 0:00:02]} 16. Bc3 {[%emt 0:00:22]} Qb5 {[%emt 0:00:37]} 17. Bxg7 {[%emt 0:00:11]} Kxg7 {[%emt 0:00:02]} 18. b3 {[%emt 0:00:11]} Rfd8 {[%emt 0:00:16]} 19. Qc2 {[%emt 0:00:03]} Rac8 {[%emt 0:01:50]} 20. Qb2+ {[%emt 0:00:02]} e5 {[%emt 0:00:15]} 21. Rfe1 {[%emt 0:00:10]} Rd5 {[%emt 0:00:39]} 22. h3 {[%emt 0:00:16]} f6 {[%emt 0:00:31]} 23. Re4 {[%emt 0:00:23]} Qd3 {[%emt 0:00:40]} 24. Qe2 {[%emt 0:00:15]} Rc2 {[%emt 0:00:18]} 25. Qxd3 {[%emt 0:00:12]} Rxd3 $15 {[%emt 0:00:03][%mdl 4096] Endgame KRR-KRR} 26. Ra4 {[%emt 0:00:28]} Rdd2 {[%emt 0:00:14]} 27. Rxa7+ {[%emt 0:00:05]} Kh6 {[%emt 0:00:02]} 28. Rf1 {[%emt 0:00:12]} e4 {[%emt 0:00:02]} 29. Ra4 {[%emt 0:00:23]} (29. Re7 $11 {and White has nothing to worry.}) 29... e3 {[%emt 0:00:19]} ({Stronger than} 29... Rxa2 30. Rxe4 Rdb2 31. Rh4+ Kg7 32. Rb4 $11) (29... f5 $19 30. Kh1 Rxf2 31. Rxf2 Rxf2) 30. Rh4+ {[%emt 0:00:03]} Kg7 {[%emt 0:00:08]} 31. Re4 $1 {[%emt 0:06:52]} exf2+ {[%emt 0:00:03]} 32. Kh2 {[%emt 0:00:09]} Rxa2 {[%emt 0:00:14]} 33. g3 {[%emt 0:02:00]} (33. Re7+ $15 Kh6 34. g4) 33... Rd3 $1 $17 {[%emt 0:02:35] Black is more active.} 34. Ra4 {[%emt 0:02:09]} (34. Rf4 $17) 34... Re2 $19 {[%emt 0:00:42]} 35. b4 {[%emt 0:08:50]} f5 {[%emt 0:01:38]} (35... h5 $19 36. b5 Rb2 37. Ra7+ Kh6) 36. b5 {[%emt 0:00:09]} (36. g4 $17 {was called for.}) 36... Rb3 {[%emt 0:00:11]} (36... Ree3 $1 $19 {is more deadly. Threatens to win with ...Rb3.} 37. Rxf2 Rxg3) 37. Ra7+ {[%emt 0:00:04] [#]} (37. g4 $17 {was necessary.}) 37... Kh6 $1 {[%emt 0:00:03] ...Ree3 is the strong threat.} 38. Rb7 $2 {[%emt 0:00:04] [#]} (38. b6) 38... Ree3 $1 {[%emt 0:00:38]} 39. Rxf2 {[%emt 0:00:19]} Rxg3 {[%emt 0:00:02]} 40. h4 {[%emt 0:00:44]} Rh3+ {[%emt 0:00:05]} 41. Kg2 {[%emt 0:00:11]} Rxh4 {[%emt 0:00:03]} 42. Rb6 {[%emt 0:01:04]} Kg5 {[%emt 0:00:30] White must now prevent ...Rg4+.} 43. Rb7 {[%emt 0:00:10]} Rhb4 {[%emt 0:01:12]} 44. Rxh7 {[%emt 0:00:22]} Rxb5 {[%emt 0:00:02] ( -> ...f4)} 45. Kh2 {[%emt 0:00:17]} Rb2 {[%emt 0:00:02]} 46. Kg2 {[%emt 0:00:25]} Rxf2+ {[%emt 0:00:02]} 47. Kxf2 {[%emt 0:00:02] KR-KR} Rb2+ {[%emt 0:00:02]} 48. Ke3 {[%emt 0:00:13]} Rb3+ {[%emt 0:00:04]} (48... f4+ $142 49. Kf3 Rb3+ 50. Ke4 Kg4 51. Rh1 g5 52. Rg1+ Rg3 53. Rh1 Re3+ 54. Kd4 Re2 55. Rg1+ Kf5 56. Rh1 f3 57. Rf1 g4 58. Kd3 Kf4 59. Rh1 g3 60. Rh7 g2 61. Rh4+ Kg3 62. Rh8 g1=Q 63. Rg8+ Kf2 64. Rxg1 Kxg1 65. Kc4 f2 66. Kd4 f1=Q 67. Kc5 Qd1 68. Kb6 Rc2 69. Ka7 Qb1 70. Ka8 Ra2#) 49. Kf2 {[%emt 0:00:05]} Kg4 {[%emt 0:00:03] Black mates.} 50. Rh6 {[%emt 0:00:05]} g5 {[%emt 0:00:02][%cal Bg6g5,Bg5g4][%mdl 32]} 51. Rh8 {[%emt 0:00:11]} f4 {[%emt 0:00:01][%cal Bf5f4,Bf4f3,Bf3f2][%mdl 32]} 52. Rf8 {[%emt 0:00:09]} Rb2+ {[%emt 0:00:02]} 53. Ke1 {[%emt 0:00:05]} Kg3 {[%emt 0:00:11]} 54. Rg8 {[%emt 0:00:08]} g4 {[%emt 0:00:03]} 55. Rd8 {[%emt 0:00:21]} f3 {[%emt 0:00:02]} 56. Rd1 {[%emt 0:01:40]} Kg2 {[%emt 0:00:09][%csl Gb2,Gg2][%cal Rf3f2]} 57. Rd4 {[%emt 0:00:48]} f2+ {[%emt 0:00:04] Weighted Error Value: White=0.78/Black=0.31} 0-1